fUSD/lending_fUSD_20240214
["ID","MTS","AMOUNT","RATE_DAILY","PERIOD"]
[314070673,1707953491371,-172.77581223,0.00040571,32]
[314070674,1707953491381,-201.0,0.00040572,10]
[314070675,1707953491390,-150.0,0.00040574,2]
[314070676,1707953491400,-150.0,0.00040575,2]
[314070677,1707953491409,-152.87813406,0.0004059,2]
[314070678,1707953491418,-25954.13921772,0.0004059,2]
[314070679,1707953491427,-150.0,0.0004059,2]
[314070680,1707953491436,-150.0,0.00040591,2]
[314070681,1707953491445,-150.0,0.00040613,2]
[314070682,1707953491455,-150.0,0.00040613,2]
[314070683,1707953491467,-150.0,0.00040619,2]
[314070684,1707953491476,-151.0,0.00040633,2]
[314070685,1707953491484,-250.49088,0.00040633,2]
[314070686,1707953491494,-150.0,0.00040641,2]
[314070687,1707953491504,-342.12752312,0.00040642,2]
[314070688,1707953491514,-150.0,0.00040642,2]
[314070689,1707953491524,-223613.2405,0.00040643,7]
[314070690,1707953491533,-153.54697605,0.00040646,9]
[314070691,1707953491544,-200.0,0.00040671,15]
[314070692,1707953491554,-800.0,0.00040671,10]
[314070693,1707953491564,-200.0,0.00040671,20]
[314070694,1707953491573,-500.0,0.00040671,20]
[314070695,1707953491582,-150.0,0.00040686,2]
[314070696,1707953491592,-1500.0,0.00040695,2]
[314070697,1707953491601,-1000.0,0.000407,7]
[314070698,1707953491610,-300.0,0.00040712,2]
[314070699,1707953491620,-1500.0,0.00040714,2]
[314070700,1707953491629,-459.78,0.00040733,2]
[314070701,1707953491638,-150.0,0.00040735,2]
[314070702,1707953491647,-1500.0,0.00040736,2]
[314070703,1707953491656,-150.0,0.00040742,2]
[314070704,1707953491665,-150.0,0.00040744,2]
[314070705,1707953491784,-150.0,0.00040752,2]
[314070706,1707953491803,-150.0,0.0004076,2]
[314070707,1707953491814,-150.0,0.0004076,2]
[314070708,1707953491823,-150.0,0.00040775,2]
[314070709,1707953491833,-850.7032518,0.00040782,2]
[314070710,1707953491843,-500.0,0.00040788,21]
[314070711,1707953491853,-151.021518,0.00040798,21]
[314070712,1707953491862,-3000.0,0.000408,44]
[314070713,1707953491871,-319.21,0.000408,7]
[314070714,1707953491881,-150.0,0.00040801,2]
[314070715,1707953491891,-150.0,0.00040802,2]
[314070716,1707953491901,-1500.0,0.00040806,2]
[314070717,1707953491910,-173.55385536,0.00040809,2]
[314070718,1707953491918,-3000.0,0.0004081,45]
[314070719,1707953491927,-150.0,0.00040811,2]
[314070720,1707953491936,-5477.23002,0.0004082,45]
[314070721,1707953491945,-150.0,0.00040821,2]
[314070722,1707953491954,-482.76,0.00040821,7]
[314070723,1707953491963,-322.12931609,0.00040821,7]
[314070724,1707953491972,-895.93,0.00040821,7]
[314070725,1707953491981,-514.71,0.00040821,7]
[314070726,1707953491991,-799.7,0.00040821,7]
[314070727,1707953492000,-558.61,0.00040821,7]
[314070728,1707953492011,-505.81,0.00040821,7]
[314070729,1707953492020,-1090.68,0.00040821,7]
[314070730,1707953492029,-475.36999999,0.00040821,7]
[314070731,1707953492039,-510.77,0.00040821,7]
[314070732,1707953492048,-500.0,0.00040821,7]
[314070733,1707953492057,-518.7,0.00040821,7]
[314070734,1707953492066,-150.0,0.00040859,2]
[314070735,1707953492075,-1378.8313464,0.0004086,2]
[314070736,1707953492085,-430.74362358,0.0004086,2]
[314070737,1707953492094,-150.0,0.00040861,2]
[314070738,1707953492104,-3931.80829881,0.00040868,2]
[314070739,1707953492114,-150.0,0.00040875,2]
[314070740,1707953492123,-150.0,0.0004088,2]
[314070741,1707953492132,-150.0,0.00040884,2]
[314070742,1707953492143,-2974.49753771,0.00040886,15]
[314070743,1707953492152,-630.92856129,0.00040887,15]
[314070744,1707953492163,-1412.40411545,0.00040893,15]
[314070745,1707953492172,-75427.27624062,0.00040896,15]
[314070746,1707953492182,-1691.0472,0.000409,2]
[314070747,1707953492191,-23537.27913758,0.000409,15]
[314070748,1707953492202,-4490.00851427,0.000409,3]
[314070749,1707953492212,-1934.39555395,0.000409,10]
[314070750,1707953492221,-7187.08218023,0.000409,3]
[314070751,1707953492230,-16056.83635217,0.00040901,15]
[314070752,1707953492238,-630.92856129,0.00040906,15]
[314070753,1707953492247,-150.0,0.00040918,2]
[314070754,1707953492257,-150.0,0.00040919,2]
[314070755,1707953492267,-150.0,0.0004092,2]
[314070756,1707953492277,-150.0,0.00040926,2]
[314070757,1707953492286,-10916.68896817,0.0004093,15]
[314070758,1707953492296,-10916.68896817,0.00040932,15]
[314070759,1707953492306,-16019.37922191,0.00040932,2]
[314070760,1707953492315,-150.0,0.00040933,2]
[314070761,1707953492327,-75427.27624062,0.00040935,15]
[314070762,1707953492337,-150.0,0.0004094,2]
[314070763,1707953492346,-150.0,0.00040948,2]
[314070764,1707953492356,-1412.40411545,0.00040949,15]
[314070765,1707953492366,-150.0,0.00040949,2]
[314070766,1707953492376,-300.0,0.00040952,2]
[314070767,1707953492385,-9265.75338619,0.00040957,15]
[314070768,1707953492695,-1650.93558198,0.00040957,15]
[314070769,1707953492705,-1412.40411545,0.00040957,15]
[314070770,1707953492715,-90.31466537,0.00040957,2]
[314070771,1707953492727,-1376.22010586,0.00040957,2]
[314070772,1707953492870,-500.0,0.00035616,7]
[314070773,1707953492880,-240.3921937,0.00035616,7]
[314070774,1707953492890,-208.212209,0.00035616,2]
[314070775,1707953492900,-17.73190956,0.00035616,7]
[314070776,1707953492985,-405.00471095,0.00035616,7]
[314070777,1707953492998,-77.26337949,0.00035616,7]
[314070778,1707953493006,-500.0,0.00035616,7]
[314070779,1707953493016,-487.53662051,0.0003589,7]
[314070780,1707953493080,-423.69477188,0.00035616,7]
[314070781,1707953493092,-76.30522812,0.00035616,7]
[314070782,1707953493102,-12.46337949,0.0003589,7]
[314070783,1707953493111,-500.0,0.0003589,7]
[314070784,1707953493121,-155.0,0.00036,2]
[314070785,1707953493130,-22.99138891,0.00036164,7]
[314070786,1707953493145,-500.0,0.00035616,7]
[314070787,1707953493155,-477.00861109,0.00036164,7]
[314070788,1707953493164,-500.0,0.00036164,7]
[314070789,1707953493174,-500.0,0.00036438,7]
[314070790,1707953493185,-500.0,0.00036712,7]
[314070791,1707953493194,-500.0,0.00036986,7]
[314070792,1707953493204,-500.0,0.00036986,7]
[314070793,1707953493213,-238.09043576,0.00037232,2]
[314070794,1707953493225,-1015.90956424,0.00037232,2]
[314070795,1707953493234,-708.0,0.00037232,2]
[314070796,1707953493245,-500.0,0.0003726,7]
[314070797,1707953493254,-500.0,0.00037534,7]
[314070798,1707953493264,-69.43624913,0.00037808,7]
[314070799,1707953493276,-430.56375087,0.00037808,7]
[314070800,1707953493285,-229.67005195,0.00038038,3]
[314070801,1707953493478,-14745.54162499,0.00038038,3]
[314070802,1707953493505,-943.40021688,0.00038038,3]
[314070803,1707953493565,-1.561e-05,0.00038038,3]
[314070804,1707953493655,-234.625,0.00037442,2]
[314070805,1707953493664,-42081.38809057,0.00038038,3]
[314070806,1707953493674,-500.0,0.00038082,7]
[314070807,1707953493683,-1252.0,0.00040232,2]
[314070808,1707953493692,-706.0,0.00040232,2]
[314070809,1707953493701,-216.0,0.00040442,2]
[314070810,1707953493710,-33.46522877,0.00040957,2]
[314070811,1707953493719,-146993.821632,0.00040959,2]
[314070812,1707953493729,-16056.83635217,0.0004096,15]
[314070813,1707953493738,-630.92856129,0.00040961,15]
[314070814,1707953493747,-16056.83635217,0.00040962,15]
[314070815,1707953493756,-150.0,0.00040965,2]
[314070816,1707953493766,-75427.27624062,0.00040966,15]
[314070817,1707953493775,-150.0,0.00040968,2]
[314070818,1707953493784,-151.0,0.00040972,7]
[314070819,1707953493794,-10316.6125906,0.00040972,2]
[314070820,1707953493803,-7887.2589104,0.00040972,2]
[314070821,1707953493813,-5457.9052303,0.00040972,2]
[314070822,1707953493823,-3028.5515501,0.00040972,2]
[314070823,1707953493832,-599.1978699,0.00040972,2]
[314070824,1707953493841,-16380.9679195,0.00040972,2]
[314070825,1707953493851,-12526.8719343,0.00040972,2]
[314070826,1707953493861,-8672.775949,0.00040972,2]
[314070827,1707953493870,-4818.6799638,0.00040972,2]
[314070828,1707953493880,-964.5839786,0.00040972,2]
[314070829,1707953493889,-757.4179854,0.00040972,2]
[314070830,1707953493898,-706.6255288,0.00040972,2]
[314070831,1707953493907,-655.8330721,0.00040972,2]
[314070832,1707953493917,-605.0406155,0.00040972,2]
[314070833,1707953493926,-554.2481589,0.00040972,2]
[314070834,1707953493935,-3149.1891918,0.00040972,2]
[314070835,1707953493944,-2931.1006722,0.00040972,2]
[314070836,1707953493954,-2713.0121527,0.00040972,2]
[314070837,1707953493963,-2494.9236331,0.00040972,2]
[314070838,1707953493973,-2276.8351136,0.00040972,2]
[314070839,1707953493982,-2974.49753771,0.00040975,15]
[314070840,1707953493992,-300.0,0.00040981,2]
[314070841,1707953494002,-150.0,0.00040983,2]
[314070842,1707953494011,-200.0,0.0004099,7]
[314070843,1707953494020,-203.38019493,0.0004099,7]
[314070844,1707953494030,-200.0,0.0004099,7]
[314070845,1707953494039,-200.0,0.0004099,7]
[314070846,1707953494048,-200.0,0.0004099,7]
[314070847,1707953494058,-200.0,0.0004099,7]
[314070848,1707953494067,-200.0,0.0004099,7]
[314070849,1707953494077,-595.92749227,0.00040991,2]
[314070850,1707953494087,-20235.0639047,0.00040991,2]
[314070851,1707953494096,-808.2104421,0.00040991,2]
[314070852,1707953494106,-3367.2777113,0.00040991,2]
[314070853,1707953494115,-218.0094523,0.00040991,2]
[314070854,1707953494125,-2974.49753771,0.00040993,15]
[314070855,1707953494134,-58597.97751911,0.00040997,2]
[314070856,1707953494146,-353.14452739,0.00040997,2]
[314070857,1707953494161,-5126.39484114,0.00040997,2]
[314070858,1707953494171,-3315.42078673,0.00040999,2]
[314070859,1707953494180,-150.01,0.00040999,2]
[314070860,1707953494189,-637.8362207,0.00040999,2]
[314070861,1707953494336,-3e-08,0.00040999,2]
[314070862,1707953494357,-500.0,0.00035616,7]
[314070863,1707953494366,-364.77757927,0.00040999,2]
[314070864,1707953494376,-8741.30266616,0.00041,4]
[314070865,1707953494388,-1006.8,0.00041,4]
[314070866,1707953494401,-16204.25823884,0.00041,4]
[314070868,1707953879906,10930.0,0.0003,120]
[314070869,1707954035907,1000.0,0.0002222,2]
[314070876,1707954551166,-336.0,0.00032123,2]
[314070877,1707954551188,-150.0,0.00032124,3]
[314070878,1707954551207,-150.0,0.00032124,3]
[314070879,1707954551229,-157.0,0.00032125,2]
[314070880,1707954551250,-2434.0046,0.00032125,2]
[314070890,1707954634312,-499.6034895,0.00032125,2]
[314070892,1707954634366,-526.40835608,0.00032125,2]
[314070893,1707954634423,-292.16600001,0.00032125,2]
[314070894,1707954634435,-5096.82874429,0.00032125,2]
[314070895,1707954634444,-161.72099694,0.00032406,2]
[314070896,1707954634454,-4964.79444649,0.00032506,7]
[314070897,1707954634466,-357.58689816,0.00032506,7]
[314070898,1707954634477,-598.64497546,0.00032506,7]
[314070899,1707954634494,-1314.39513694,0.00032506,7]
[314070900,1707954634506,-5132.91816214,0.00032506,7]
[314070901,1707954634518,-8169.99799999,0.00032506,7]
[314070902,1707954634538,-1209.55348995,0.00032506,7]
[314070918,1707954638266,-6286.67895268,0.00032506,7]
[314070919,1707954638276,-1401.72850309,0.00032506,7]
[314070920,1707954638285,-3540.18833821,0.00032506,7]
[314070921,1707954638294,-2057.07450042,0.00032506,7]
[314070922,1707954640316,-1255.8034579,0.00032506,7]
[314070923,1707954640328,-537.465,0.00032506,7]
[314070924,1707954640479,-10096.2259764,0.00032506,7]
[314070925,1707954640489,-533.58,0.00032573,2]
[314070926,1707954640499,-311.99292575,0.00033,2]
[314070927,1707954640508,-152.92,0.000335,2]
[314070928,1707954640518,-152.92,0.000335,2]
[314070929,1707954640527,-152.92,0.000335,2]
[314070930,1707954640536,-157.0,0.00033768,2]
[314070931,1707954640546,-876.55,0.00033768,2]
[314070932,1707954640556,-150.3,0.00033928,2]
[314070933,1707954640565,-427.33,0.0003397,2]
[314070934,1707954640574,-2000.0,0.00033983,2]
[314070935,1707954640584,-250.0,0.0003404,2]
[314070936,1707954640593,-500.0,0.0003404,2]
[314070937,1707954640602,-1000.0,0.00034049,2]
[314070938,1707954640611,-264.8,0.00034059,2]
[314070939,1707954640620,-250.0,0.00034087,2]
[314070940,1707954640630,-150.0,0.00034101,2]
[314070941,1707954640639,-1197.02,0.00034111,2]
[314070942,1707954640648,-250.0,0.00034129,111]
[314070944,1707954640658,-8690.62921303,0.00034144,2]
[314070945,1707954640673,-1636.62769994,0.00034144,2]
[314070947,1707954640684,-5091.95006226,0.00034144,2]
[314070963,1707954640822,-1290.0,0.00034144,2]
[314070975,1707954640926,-2117.3,0.00034144,2]
[314070995,1707954641671,-547.10205551,0.00034144,2]
[314070996,1707954641684,-4526.39096926,0.00034144,2]
[314070997,1707954641694,-152.88,0.00034306,2]
[314070998,1707954641703,-750.0,0.00034433,4]
[314070999,1707954641712,-370.0,0.00034433,2]
[314071000,1707954641722,-375.0,0.00034433,4]
[314071002,1707954641732,-663.31240837,0.00034455,4]
[314071004,1707954641741,-533.58,0.00034837,2]
[314071006,1707954641752,-2248.77,0.00035079,2]
[314071008,1707954641762,-157.0,0.00035412,2]
[314071010,1707954641773,-7147.8123,0.00035416,2]
[314071011,1707954641782,-360.9947,0.00035416,2]
[314071013,1707954641792,-1816.79881972,0.00035416,2]
[314071015,1707954641802,-150.0,0.00035447,2]
[314071017,1707954641811,-32599.26080265,0.0003548,2]
[314071030,1707954643579,-64405.55379735,0.0003548,2]
[314071031,1707954643589,-333.0,0.00035516,2]
[314071032,1707954643598,-1000.0,0.0003558,2]
[314071033,1707954643607,-2500.0,0.0003559,2]
[314071034,1707954643616,-152.92,0.000356,3]
[314071035,1707954643626,-152.92,0.000356,3]
[314071036,1707954643635,-152.92,0.000356,3]
[314071037,1707954643644,-1794.88,0.00035616,5]
[314071038,1707954643653,-553.88523257,0.00035616,7]
[314071039,1707954643663,-500.0,0.00035616,7]
[314071040,1707954643672,-569.34017363,0.00035616,7]
[314071041,1707954643683,-491.14457367,0.00035616,7]
[314071042,1707954643692,-500.0,0.00035616,7]
[314071043,1707954643701,-150.0,0.00035616,7]
[314071044,1707954643711,-519.21,0.00035616,7]
[314071045,1707954643720,-500.0,0.00035616,7]
[314071046,1707954643729,-1229.44694569,0.00035679,2]
[314071047,1707954643738,-500.0,0.0003568,7]
[314071048,1707954643748,-500.0,0.0003568,7]
[314071049,1707954643759,-500.0,0.0003568,7]
[314071050,1707954643772,-500.0,0.0003568,7]
[314071051,1707954643781,-500.0,0.0003568,7]
[314071052,1707954643791,-500.0,0.0003568,7]
[314071053,1707954643801,-500.0,0.0003568,7]
[314071055,1707954643810,-469.33929297,0.0003568,7]
[314071057,1707954643819,-500.0,0.0003568,7]
[314071058,1707954643828,-3286.47,0.0003568,7]
[314071059,1707954643838,-500.0,0.00035689,7]
[314071060,1707954643848,-500.0,0.00035689,7]
[314071061,1707954643858,-500.0,0.00035689,7]
[314071062,1707954643867,-500.0,0.00035689,7]
[314071063,1707954643876,-500.0,0.00035689,7]
[314071064,1707954643886,-500.0,0.00035689,7]
[314071065,1707954643895,-500.0,0.00035689,7]
[314071066,1707954643904,-1000.0,0.0003569,2]
[314071067,1707954643913,-245000.0,0.0003569,2]
[314071068,1707954643922,-155.0,0.0003579,2]
[314071069,1707954643931,-6475.9717,0.0003579,2]
[314071070,1707954643941,-100000.0,0.0003579,2]
[314071071,1707954643950,-2063.4258,0.0003579,2]
[314071072,1707954643959,-168.77,0.00035847,2]
[314071073,1707954643968,-504.70386238,0.0003589,7]
[314071074,1707954643977,-500.0,0.0003589,7]
[314071075,1707954643986,-500.0,0.0003589,7]
[314071076,1707954643995,-150.0,0.000359,2]
[314071077,1707954644006,-500.0,0.00035953,7]
[314071078,1707954644015,-594.54102785,0.00035953,7]
[314071079,1707954644024,-500.0,0.00035953,7]
[314071080,1707954644033,-276.98417265,0.00035953,7]
[314071081,1707954644042,-500.0,0.00035953,7]
[314071082,1707954644051,-500.0,0.00035953,7]
[314071083,1707954644060,-3286.47,0.00035953,7]
[314071084,1707954644069,-230.2,0.00035963,7]
[314071085,1707954644078,-500.0,0.00035963,7]
[314071086,1707954644087,-500.0,0.00035963,7]
[314071087,1707954644096,-500.0,0.00035963,7]
[314071088,1707954644106,-500.0,0.00035963,7]
[314071089,1707954644115,-500.0,0.00035963,7]
[314071090,1707954644124,-500.0,0.00035963,7]
[314071091,1707954644133,-1816.79881968,0.00036025,2]
[314071092,1707954644142,-500.0,0.00036164,7]
[314071093,1707954644151,-186.74084712,0.00036164,7]
[314071094,1707954644160,-500.0,0.00036227,7]
[314071095,1707954644169,-500.0,0.00036227,7]
[314071096,1707954644188,-500.0,0.00036227,7]
[314071097,1707954644198,-500.0,0.00036227,7]
[314071098,1707954644208,-3286.47,0.00036227,7]
[314071099,1707954644217,-498.0,0.0003623,2]
[314071100,1707954644226,-500.0,0.00036237,7]
[314071101,1707954644236,-500.0,0.00036237,7]
[314071102,1707954644245,-500.0,0.00036237,7]
[314071103,1707954644256,-500.0,0.00036237,7]
[314071104,1707954644266,-500.0,0.00036237,7]
[314071105,1707954644275,-500.0,0.00036237,7]
[314071106,1707954644284,-500.0,0.00036438,7]
[314071107,1707954644294,-543.18,0.00036501,7]
[314071108,1707954644303,-574.97999999,0.00036501,7]
[314071109,1707954644313,-558.8922636,0.00036501,7]
[314071110,1707954644322,-3286.47,0.00036501,7]
[314071111,1707954644331,-500.0,0.00036511,7]
[314071112,1707954644341,-500.0,0.00036511,7]
[314071113,1707954644350,-523.43101919,0.00036511,7]
[314071114,1707954644359,-500.0,0.00036511,7]
[314071115,1707954644368,-500.0,0.00036511,7]
[314071116,1707954644378,-500.0,0.00036511,7]
[314071117,1707954644387,-1816.79881968,0.00036635,2]
[314071118,1707954644396,-3286.47,0.00036775,7]
[314071119,1707954644405,-234.46098409,0.00036785,7]
[314071120,1707954644414,-500.0,0.00036785,7]
[314071121,1707954644423,-500.0,0.00036785,7]
[314071122,1707954644433,-500.0,0.00036785,7]
[314071123,1707954644442,-155.0,0.0003702,2]
[314071124,1707954644451,-3286.47,0.00037049,7]
[314071125,1707954644460,-157.0,0.00037056,7]
[314071126,1707954644470,-500.0,0.00037059,7]
[314071127,1707954644479,-500.0,0.00037059,7]
[314071128,1707954644488,-500.0,0.00037059,7]
[314071129,1707954644499,-533.58,0.00037101,2]
[314071130,1707954644508,-1816.79881968,0.00037244,2]
[314071131,1707954644517,-1229.44694561,0.00037258,2]
[314071132,1707954644527,-1000.0,0.000373,2]
[314071133,1707954644536,-3286.47,0.00037323,7]
[314071134,1707954644546,-500.0,0.00037333,7]
[314071135,1707954644555,-583.7603627,0.00037333,7]
[314071136,1707954644564,-199.02,0.00037333,7]
[314071137,1707954644574,-157.43,0.00037399,2]
[314071138,1707954644583,-1000.0,0.000375,2]
[314071139,1707954644593,-180.0,0.00037529,2]
[314071140,1707954644602,-3286.47,0.00037597,7]
[314071141,1707954644612,-152.92,0.000376,3]
[314071142,1707954644621,-152.92,0.000376,3]
[314071143,1707954644631,-152.92,0.000376,3]
[314071144,1707954644640,-500.0,0.00037607,7]
[314071145,1707954644649,-1816.79881968,0.00037853,2]
[314071146,1707954644658,-3286.47,0.00037871,7]
[314071147,1707954644667,-362.82,0.00037881,7]
[314071148,1707954644677,-153.54697605,0.00037912,2]
[314071149,1707954644687,-27486.69062227,0.00038012,3]
[314071150,1707954644705,-2428.93445607,0.00038012,3]
[314071151,1707954644717,-9906.62871164,0.00038012,3]
[314071152,1707954644728,-11135.97775307,0.00038012,3]
[314071168,1707954646322,-500.0,0.0003568,7]
[314071169,1707954646332,-7041.76845695,0.00038012,3]
[314071170,1707954646341,-58000.0,0.0003802,3]
[314071171,1707954646350,-58000.0,0.00038029,3]
[314071172,1707954646359,-201.0,0.0003807,2]
[314071173,1707954646369,-14992.61224146,0.00038082,3]
[314071174,1707954646379,-1388.0,0.00038102,20]
[314071175,1707954646388,-286.0,0.00038102,20]
[314071176,1707954646398,-3286.47,0.00038145,7]
[314071177,1707954646408,-1000.0,0.00038305,2]
[314071178,1707954646418,-2831.0,0.00038342,2]
[314071179,1707954646427,-1231.0,0.00038342,2]
[314071180,1707954646436,-1948.0,0.00038342,2]
[314071181,1707954646445,-442.661,0.00038342,2]
[314071182,1707954646455,-599.0,0.00038342,2]
[314071183,1707954646464,-1018.812,0.00038342,2]
[314071184,1707954646473,-243.647,0.00038342,2]
[314071185,1707954646483,-964.147,0.00038342,2]
[314071186,1707954646492,-431.489,0.00038342,2]
[314071187,1707954646503,-1138.0,0.00038342,2]
[314071188,1707954646512,-416.335,0.00038342,2]
[314071189,1707954646522,-150.0,0.00038342,2]
[314071190,1707954646532,-153.746,0.00038342,2]
[314071191,1707954646541,-150.0,0.00038342,2]
[314071192,1707954646550,-151.005,0.00038342,2]
[314071193,1707954646560,-180.0,0.00038342,2]
[314071194,1707954646569,-163.953,0.00038342,2]
[314071195,1707954646579,-180.308,0.00038342,2]
[314071196,1707954646588,-151.228,0.00038342,2]
[314071197,1707954646597,-150.0,0.00038342,2]
[314071198,1707954646606,-211.745,0.00038342,2]
[314071199,1707954646615,-150.0,0.00038342,2]
[314071200,1707954646624,-500.0,0.00038356,10]
[314071201,1707954646633,-155.0,0.0003839,2]
[314071202,1707954646642,-3286.47,0.00038419,7]
[314071203,1707954646651,-1816.79881968,0.00038463,2]
[314071204,1707954646660,-1388.0,0.00038494,20]
[314071205,1707954646669,-286.0,0.00038494,20]
[314071206,1707954646678,-498.0,0.0003864,2]
[314071207,1707954646688,-201.0,0.00038647,3]
[314071208,1707954646876,-101295.971669,0.0003869,3]
[314071209,1707954646885,-3286.47,0.00038693,7]
[314071210,1707954646895,-157.0,0.000387,7]
[314071211,1707954646904,-150.0,0.00038729,30]
[314071212,1707954646913,-1229.44694561,0.00038837,2]
[314071213,1707954646922,-1388.0,0.00038887,20]
[314071214,1707954646932,-286.0,0.00038887,20]
[314071215,1707954646941,-3286.47,0.00038967,7]
[314071216,1707954646950,-500.0,0.00039041,10]
[314071217,1707954646959,-1816.79881968,0.00039072,2]
[314071218,1707954646968,-201.0,0.00039224,5]
[314071219,1707954646978,-3286.47,0.00039241,7]
[314071220,1707954646987,-275.86,0.0003926,2]
[314071221,1707954646996,-190.30158451,0.0003928,20]
[314071222,1707954647006,-1388.0,0.0003928,20]
[314071223,1707954647015,-286.0,0.0003928,20]
[314071224,1707954647024,-1020.41925612,0.0003928,20]
[314071225,1707954647033,-533.58,0.00039365,2]
[314071226,1707954647042,-152.95,0.00039381,2]
[314071227,1707954647051,-3286.47,0.00039515,7]
[314071228,1707954647060,-13892.0,0.000396,2]
[314071229,1707954647070,-200.0,0.0003964,15]
[314071230,1707954647079,-1388.0,0.00039673,20]
[314071231,1707954647087,-286.0,0.00039673,20]
[314071232,1707954647097,-1816.79881968,0.00039681,2]
[314071233,1707954647106,-152.92,0.000397,3]
[314071234,1707954647115,-152.92,0.000397,3]
[314071235,1707954647124,-152.92,0.000397,3]
[314071236,1707954647133,-500.0,0.00039726,10]
[314071237,1707954647142,-155.0,0.0003976,2]
[314071238,1707954647151,-3286.47,0.00039789,7]
[314071239,1707954647160,-201.0,0.00039801,6]
[314071240,1707954647169,-255.0,0.0004,12]
[314071241,1707954647178,-300.0,0.0004,5]
[314071242,1707954647188,-255.0,0.0004,12]
[314071243,1707954647197,-126664.34330296,0.0004,2]
[314071244,1707954647206,-255.0,0.0004,12]
[314071245,1707954647214,-255.0,0.0004,12]
[314071246,1707954647223,-255.0,0.0004,12]
[314071247,1707954647232,-255.0,0.0004,12]
[314071248,1707954647242,-1000.0,0.0004,2]
[314071249,1707954647251,-255.0,0.0004,12]
[314071250,1707954647261,-3286.47,0.00040063,7]
[314071251,1707954647270,-1388.0,0.00040066,20]
[314071252,1707954647279,-286.0,0.00040066,20]
[314071253,1707954647288,-1000.0,0.000401,7]
[314071254,1707954647297,-150.0,0.00040139,30]
[314071255,1707954647307,-1055.01111001,0.0004018,5]
[314071256,1707954647316,-171.021518,0.00040198,19]
[314071257,1707954647325,-1816.79881968,0.00040291,2]
[314071258,1707954647335,-1000.0,0.000403,2]
[314071259,1707954647344,-1000.0,0.000403,7]
[314071260,1707954647354,-3286.47,0.00040337,7]
[314071261,1707954647362,-158.0,0.00040344,7]
[314071262,1707954647372,-201.0,0.00040379,10]
[314071263,1707954647381,-500.0,0.0004041,10]
[314071264,1707954647390,-1229.44694561,0.00040416,5]
[314071265,1707954647400,-1388.0,0.00040458,20]
[314071266,1707954647409,-286.0,0.00040458,20]
[314071267,1707954647418,-1827.465,0.0004049,2]
[314071268,1707954647427,-171.021518,0.00040498,20]
[314071269,1707954647437,-1000.0,0.000405,7]
[314071270,1707954647446,-492.89387823,0.00040548,5]
[314071271,1707954647455,-3286.47,0.00040611,7]
[314071272,1707954647465,-162.09516178,0.00040657,14]
[314071273,1707954647474,-200.0,0.00040671,15]
[314071274,1707954647483,-800.0,0.00040671,10]
[314071275,1707954647492,-800.0,0.00040671,10]
[314071276,1707954647501,-500.0,0.00040671,20]
[314071277,1707954647512,-800.0,0.00040672,10]
[314071278,1707954647521,-200.0,0.00040672,20]
[314071279,1707954647531,-500.0,0.00040672,20]
[314071280,1707954647540,-150.0,0.00040717,2]
[314071281,1707954647550,-150.0,0.00040722,2]
[314071282,1707954647559,-150.0,0.00040724,2]
[314071283,1707954647568,-150.0,0.00040731,2]
[314071284,1707954647578,-275.86,0.00040733,2]
[314071285,1707954647587,-150.0,0.00040733,2]
[314071286,1707954647595,-150.0,0.00040739,2]
[314071287,1707954647605,-150.0,0.0004074,2]
[314071288,1707954647614,-150.0,0.00040741,2]